[Event "Betsys MČR v online bleskovém šachu 2021"]
[Site "Chess.com"]
[Date "2021.04.17"]
[Round "13"]
[White "kubaches123"]
[Black "chessbeer17"]
[Result "0-1"]
[WhiteElo "2139"]
[BlackElo "2369"]
[TimeControl "180+1"]
[EndTime "11:11:07 PDT"]
[Termination "Uživatel chessbeer17 zvítězil po vzdání soupeře"]

1. d4 {[%clk 0:03:00.9]} 1... Nf6 {[%clk 0:02:59.6]} 2. c4 {[%clk 0:03:01]} 2...
e6 {[%clk 0:02:59.9]} 3. Nf3 {[%clk 0:02:59.9]} 3... b6 {[%clk 0:02:59.3]} 4. a3
{[%clk 0:02:59.6]} 4... Bb7 {[%clk 0:02:59.4]} 5. Nc3 {[%clk 0:03:00.1]} 5...
Be7 {[%clk 0:02:59.9]} 6. Qc2 {[%clk 0:02:59.2]} 6... d5 {[%clk 0:02:59.1]} 7.
cxd5 {[%clk 0:02:59.3]} 7... exd5 {[%clk 0:02:58.9]} 8. Bf4 {[%clk 0:02:59.2]}
8... O-O {[%clk 0:02:58.6]} 9. e3 {[%clk 0:02:59.7]} 9... c5 {[%clk 0:02:57.2]}
10. Bd3 {[%clk 0:02:59.8]} 10... Nbd7 {[%clk 0:02:51.4]} 11. O-O {[%clk
0:02:59.5]} 11... h6 {[%clk 0:02:51.2]} 12. Rfd1 {[%clk 0:02:51.2]} 12... c4
{[%clk 0:02:51.3]} 13. Bf5 {[%clk 0:02:51.2]} 13... a6 {[%clk 0:02:48.7]} 14. a4
{[%clk 0:02:50.7]} 14... Re8 {[%clk 0:02:46.3]} 15. Ne5 {[%clk 0:02:50.7]} 15...
Bb4 {[%clk 0:02:40.7]} 16. b3 {[%clk 0:02:00.2]} 16... Bxc3 {[%clk 0:01:57]} 17.
Qxc3 {[%clk 0:02:01.1]} 17... b5 {[%clk 0:01:53.6]} 18. bxc4 {[%clk 0:01:42]}
18... dxc4 {[%clk 0:01:39.1]} 19. Nxd7 {[%clk 0:01:35.6]} 19... Nxd7 {[%clk
0:01:38.7]} 20. axb5 {[%clk 0:01:27.3]} 20... axb5 {[%clk 0:01:38.4]} 21. Rxa8
{[%clk 0:01:27.8]} 21... Bxa8 {[%clk 0:01:39]} 22. Qb4 {[%clk 0:01:28]} 22...
Nf6 {[%clk 0:01:20.4]} 23. Qxb5 {[%clk 0:01:16.5]} 23... c3 {[%clk 0:01:20.4]}
24. Qc4 {[%clk 0:01:13.9]} 24... Qd5 {[%clk 0:01:16.8]} 25. Qxd5 {[%clk
0:01:08.4]} 25... Nxd5 {[%clk 0:01:17.1]} 26. Bg3 {[%clk 0:01:00.7]} 26... g6
{[%clk 0:01:08.5]} 27. Bb1 {[%clk 0:00:42.1]} 27... Rc8 {[%clk 0:01:05.1]} 28.
Rc1 {[%clk 0:00:41.9]} 28... Nb4 {[%clk 0:00:47.6]} 29. Bd6 {[%clk 0:00:34.6]}
29... Na6 {[%clk 0:00:41.9]} 30. Bd3 {[%clk 0:00:29.8]} 30... Bb7 {[%clk
0:00:40.8]} 31. f3 {[%clk 0:00:23.5]} 31... Kg7 {[%clk 0:00:40.9]} 32. Kf2
{[%clk 0:00:16.8]} 32... Kf6 {[%clk 0:00:38.1]} 33. e4 {[%clk 0:00:17]} 33...
Ke6 {[%clk 0:00:36.9]} 34. Ba3 {[%clk 0:00:14.6]} 34... f5 {[%clk 0:00:34]} 35.
Ke3 {[%clk 0:00:14.7]} 35... fxe4 {[%clk 0:00:33.4]} 36. fxe4 {[%clk 0:00:15.6]}
36... g5 {[%clk 0:00:33.5]} 37. d5+ {[%clk 0:00:14.7]} 37... Ke5 {[%clk
0:00:32.4]} 38. Bxa6 {[%clk 0:00:12.5]} 38... Bxa6 {[%clk 0:00:32.2]} 39. Rc2
{[%clk 0:00:11]} 39... Rc4 {[%clk 0:00:22.9]} 40. Rxc3 {[%clk 0:00:11.2]} 40...
Rxc3+ {[%clk 0:00:22.6]} 0-1

[Event "Betsys MČR v online bleskovém šachu 2021"]
[Site "Chess.com"]
[Date "2021.04.17"]
[Round "13"]
[White "TTCZ"]
[Black "Tomasbezdek07"]
[Result "0-1"]
[WhiteElo "1456"]
[BlackElo "1701"]
[TimeControl "180+1"]
[EndTime "11:11:08 PDT"]
[Termination "Uživatel Tomasbezdek07 zvítězil na čas"]

1. e4 {[%clk 0:03:00.9]} 1... d6 {[%clk 0:03:00.1]} 2. Nc3 {[%clk 0:03:00.8]}
2... Nf6 {[%clk 0:03:00.4]} 3. d4 {[%clk 0:03:00.4]} 3... Nbd7 {[%clk 0:03:00]}
4. f4 {[%clk 0:03:00.3]} 4... e5 {[%clk 0:03:00.3]} 5. Nf3 {[%clk 0:02:54.9]}
5... exd4 {[%clk 0:02:59.4]} 6. Nxd4 {[%clk 0:02:54.8]} 6... Nc5 {[%clk
0:02:59.2]} 7. Bd3 {[%clk 0:02:47.9]} 7... Bg4 {[%clk 0:02:53.9]} 8. Nf3 {[%clk
0:02:43.6]} 8... Be7 {[%clk 0:02:50.3]} 9. O-O {[%clk 0:02:42.4]} 9... O-O
{[%clk 0:02:49.5]} 10. h3 {[%clk 0:02:40.6]} 10... Bxf3 {[%clk 0:02:48.1]} 11.
Qxf3 {[%clk 0:02:40]} 11... c6 {[%clk 0:02:44.3]} 12. Be3 {[%clk 0:02:38]} 12...
Nxd3 {[%clk 0:02:42.9]} 13. cxd3 {[%clk 0:02:37.1]} 13... d5 {[%clk 0:02:39.4]}
14. e5 {[%clk 0:02:33.9]} 14... Nd7 {[%clk 0:02:38.4]} 15. d4 {[%clk 0:02:33.7]}
15... Nb6 {[%clk 0:02:29.4]} 16. b3 {[%clk 0:02:29.9]} 16... a5 {[%clk
0:02:28.9]} 17. Ne2 {[%clk 0:02:23.2]} 17... a4 {[%clk 0:02:27.1]} 18. bxa4
{[%clk 0:02:17.5]} 18... Rxa4 {[%clk 0:02:24.1]} 19. f5 {[%clk 0:02:16]} 19...
Nc4 {[%clk 0:02:15.8]} 20. Bf2 {[%clk 0:02:07.7]} 20... Nd2 {[%clk 0:02:05.6]}
21. Qf4 {[%clk 0:02:05.4]} 21... Nxf1 {[%clk 0:02:03.2]} 22. Kxf1 {[%clk
0:01:56.1]} 22... Bg5 {[%clk 0:02:00.8]} 23. Qg4 {[%clk 0:01:52.8]} 23... h6
{[%clk 0:01:48.8]} 24. h4 {[%clk 0:01:51.1]} 24... Bd2 {[%clk 0:01:37.8]} 25. f6
{[%clk 0:01:48.3]} 25... g6 {[%clk 0:01:37.1]} 26. Rb1 {[%clk 0:01:36.5]} 26...
Rxa2 {[%clk 0:01:29.6]} 27. h5 {[%clk 0:01:02]} 27... g5 {[%clk 0:01:26.5]} 28.
Ng3 {[%clk 0:00:56]} 28... Qc8 {[%clk 0:01:08.7]} 29. Nf5 {[%clk 0:00:51.1]}
29... Qa8 {[%clk 0:01:04]} 30. Nxh6+ {[%clk 0:00:50]} 30... Kh7 {[%clk
0:01:01.9]} 31. Nf5 {[%clk 0:00:44.1]} 31... Qa6+ {[%clk 0:00:56.6]} 32. Kg1
{[%clk 0:00:40.4]} 32... Ra1 {[%clk 0:00:51.9]} 33. Rxa1 {[%clk 0:00:38.6]}
33... Qxa1+ {[%clk 0:00:50.4]} 34. Kh2 {[%clk 0:00:39.2]} 34... Bf4+ {[%clk
0:00:49.6]} 35. g3 {[%clk 0:00:37.7]} 35... Qb2 {[%clk 0:00:40.8]} 36. Kg2
{[%clk 0:00:34.7]} 36... Bd2 {[%clk 0:00:32.4]} 37. Ne7 {[%clk 0:00:27.5]} 37...
Qc2 {[%clk 0:00:25.3]} 0-1

[Event "Betsys MČR v online bleskovém šachu 2021"]
[Site "Chess.com"]
[Date "2021.04.17"]
[Round "13"]
[White "kubajss"]
[Black "Ami2013"]
[Result "1-0"]
[WhiteElo "910"]
[BlackElo "492"]
[TimeControl "180+1"]
[EndTime "11:11:09 PDT"]
[Termination "Uživatel kubajss zvítězil na čas"]

1. e4 {[%clk 0:03:00.9]} 1... e5 {[%clk 0:02:58.6]} 2. Nf3 {[%clk 0:03:00.9]}
2... Nc6 {[%clk 0:02:57]} 3. Bc4 {[%clk 0:02:59.7]} 3... Nf6 {[%clk 0:02:53]} 4.
d3 {[%clk 0:02:58.7]} 4... h6 {[%clk 0:02:47.2]} 5. O-O {[%clk 0:02:53.9]} 5...
d6 {[%clk 0:02:38.3]} 6. Nc3 {[%clk 0:02:51.1]} 6... Bg4 {[%clk 0:02:28.2]} 7.
h3 {[%clk 0:02:45.3]} 7... Bh5 {[%clk 0:02:25.5]} 8. Be3 {[%clk 0:02:30.5]} 8...
Be7 {[%clk 0:02:18.4]} 9. d4 {[%clk 0:02:25.7]} 9... Bxf3 {[%clk 0:02:15.5]} 10.
Qxf3 {[%clk 0:02:24.7]} 10... O-O {[%clk 0:02:11.9]} 11. d5 {[%clk 0:02:22.3]}
11... Nh5 {[%clk 0:01:59.3]} 12. Qg4 {[%clk 0:02:09.9]} 12... Nf6 {[%clk
0:01:49.3]} 13. Qg3 {[%clk 0:02:00.8]} 13... h5 {[%clk 0:01:38.5]} 14. Bh6
{[%clk 0:01:56.4]} 14... Ng4 {[%clk 0:01:28.1]} 15. hxg4 {[%clk 0:01:50]} 15...
gxh6 {[%clk 0:01:23]} 16. gxh5+ {[%clk 0:01:48.8]} 16... Bg5 {[%clk 0:01:18.5]}
17. Be2 {[%clk 0:01:26.5]} 17... Kh8 {[%clk 0:01:10.4]} 18. f3 {[%clk
0:01:08.8]} 18... Bf4 {[%clk 0:01:08.6]} 19. Qg4 {[%clk 0:00:59.5]} 19... Be3+
{[%clk 0:00:56.2]} 20. Kh1 {[%clk 0:00:51.5]} 20... Rg8 {[%clk 0:00:48.6]} 21.
Qh3 {[%clk 0:00:39.1]} 21... Rg5 {[%clk 0:00:23.7]} 22. Nd1 {[%clk 0:00:33.2]}
22... f5 {[%clk 0:00:20.2]} 23. Nxe3 {[%clk 0:00:31.4]} 23... f4 {[%clk
0:00:18.9]} 24. Ng4 {[%clk 0:00:28.8]} 24... Rg6 {[%clk 0:00:13.8]} 25. Rad1
{[%clk 0:00:21.4]} 25... Rg5 {[%clk 0:00:12.1]} 26. Nxh6 {[%clk 0:00:20.5]}
26... Kh7 {[%clk 0:00:09.4]} 27. Nf7 {[%clk 0:00:20.2]} 27... Qf6 {[%clk
0:00:07.5]} 28. Nxg5+ {[%clk 0:00:20.4]} 28... Qxg5 {[%clk 0:00:07.3]} 29. Qh2
{[%clk 0:00:20]} 29... Kh6 {[%clk 0:00:05.7]} 30. Bb5 {[%clk 0:00:16.5]} 30...
Qxh5 {[%clk 0:00:04.3]} 31. Qxh5+ {[%clk 0:00:14.2]} 31... Kxh5 {[%clk 0:00:04]}
32. Kg1 {[%clk 0:00:13.6]} 32... Rg8 {[%clk 0:00:01.8]} 33. Kf2 {[%clk
0:00:13.5]} 1-0

[Event "Betsys MČR v online bleskovém šachu 2021"]
[Site "Chess.com"]
[Date "2021.04.17"]
[Round "13"]
[White "Saygram"]
[Black "JJ95"]
[Result "0-1"]
[WhiteElo "2362"]
[BlackElo "2033"]
[TimeControl "180+1"]
[EndTime "11:11:10 PDT"]
[Termination "Uživatel JJ95 zvítězil po vzdání soupeře"]

1. e4 {[%clk 0:03:00.9]} 1... e5 {[%clk 0:03:00]} 2. f4 {[%clk 0:03:00.5]} 2...
exf4 {[%clk 0:02:59.7]} 3. Nf3 {[%clk 0:03:00.8]} 3... Nf6 {[%clk 0:02:59.8]} 4.
Nc3 {[%clk 0:02:59.1]} 4... d5 {[%clk 0:02:59.7]} 5. e5 {[%clk 0:02:58.5]} 5...
Ne4 {[%clk 0:02:58.3]} 6. d4 {[%clk 0:02:54.6]} 6... Be7 {[%clk 0:02:55.1]} 7.
Bxf4 {[%clk 0:02:54.1]} 7... Nxc3 {[%clk 0:02:47.2]} 8. bxc3 {[%clk 0:02:53.4]}
8... Nc6 {[%clk 0:02:46.9]} 9. Bd3 {[%clk 0:02:53]} 9... Bg4 {[%clk 0:02:46.2]}
10. O-O {[%clk 0:02:52.2]} 10... O-O {[%clk 0:02:44.8]} 11. Qe1 {[%clk
0:02:50.6]} 11... Bh5 {[%clk 0:02:34.6]} 12. Qg3 {[%clk 0:02:43.9]} 12... Bg6
{[%clk 0:02:34.1]} 13. Bxg6 {[%clk 0:02:41.4]} 13... hxg6 {[%clk 0:02:26.9]} 14.
Rae1 {[%clk 0:02:35.1]} 14... Qd7 {[%clk 0:02:25.1]} 15. Bg5 {[%clk 0:02:33.7]}
15... Nd8 {[%clk 0:02:15]} 16. Bxe7 {[%clk 0:02:33.3]} 16... Qxe7 {[%clk
0:02:14.8]} 17. h4 {[%clk 0:02:14.1]} 17... Ne6 {[%clk 0:02:11.5]} 18. Ng5
{[%clk 0:02:12.2]} 18... c5 {[%clk 0:01:59.1]} 19. Nxe6 {[%clk 0:01:21.1]} 19...
Qxe6 {[%clk 0:02:00]} 20. h5 {[%clk 0:01:16.8]} 20... gxh5 {[%clk 0:01:55.8]}
21. Rf6 {[%clk 0:01:16.6]} 21... Qg4 {[%clk 0:01:56]} 22. Qxg4 {[%clk
0:01:15.3]} 22... hxg4 {[%clk 0:01:56]} 23. Rd6 {[%clk 0:01:15.3]} 23... cxd4
{[%clk 0:01:51]} 24. cxd4 {[%clk 0:01:03.9]} 24... Rfd8 {[%clk 0:01:50.6]} 25.
Kf2 {[%clk 0:00:29.3]} 25... Kf8 {[%clk 0:01:48.5]} 26. Kg3 {[%clk 0:00:29]}
26... Rxd6 {[%clk 0:01:48.8]} 27. exd6 {[%clk 0:00:29.3]} 27... Rd8 {[%clk
0:01:49.3]} 28. Kxg4 {[%clk 0:00:28.3]} 28... Rxd6 {[%clk 0:01:49.5]} 29. Re5
{[%clk 0:00:28.6]} 29... f6 {[%clk 0:01:47.7]} 30. Re2 {[%clk 0:00:26.9]} 30...
Kf7 {[%clk 0:01:45.2]} 31. Kf5 {[%clk 0:00:23.8]} 31... g6+ {[%clk 0:01:43.4]}
32. Kf4 {[%clk 0:00:24.1]} 32... Re6 {[%clk 0:01:42.6]} 33. Rd2 {[%clk
0:00:22.9]} 33... Re4+ {[%clk 0:01:39.6]} 34. Kf3 {[%clk 0:00:22.8]} 34... Ke6
{[%clk 0:01:38.4]} 35. c3 {[%clk 0:00:22.8]} 35... g5 {[%clk 0:01:36.9]} 36. Rb2
{[%clk 0:00:21.8]} 36... Rf4+ {[%clk 0:01:35]} 37. Ke3 {[%clk 0:00:21.2]} 37...
Re4+ {[%clk 0:01:34.6]} 38. Kd3 {[%clk 0:00:18.4]} 38... Rg4 {[%clk 0:01:29.2]}
39. Rxb7 {[%clk 0:00:17]} 39... Rg3+ {[%clk 0:01:19.5]} 40. Kc2 {[%clk
0:00:14.4]} 40... Rxg2+ {[%clk 0:01:20.4]} 41. Kb3 {[%clk 0:00:15]} 41... a5
{[%clk 0:01:18.9]} 42. a4 {[%clk 0:00:11.3]} 42... g4 {[%clk 0:01:15.4]} 43. c4
{[%clk 0:00:11.7]} 43... Rg3+ {[%clk 0:01:11.8]} 44. Kc2 {[%clk 0:00:11.6]}
44... dxc4 {[%clk 0:01:11.7]} 45. Rb5 {[%clk 0:00:10.6]} 45... Rd3 {[%clk
0:01:05.2]} 46. Rxa5 {[%clk 0:00:09.5]} 46... Rxd4 {[%clk 0:01:05.4]} 47. Ra8
{[%clk 0:00:08]} 47... f5 {[%clk 0:01:03.1]} 48. Rg8 {[%clk 0:00:08.1]} 48... c3
{[%clk 0:00:56.2]} 49. Kxc3 {[%clk 0:00:04.7]} 49... Rxa4 {[%clk 0:00:56.3]} 50.
Kd3 {[%clk 0:00:05.1]} 50... Re4 {[%clk 0:00:52.5]} 51. Rg6+ {[%clk 0:00:02.8]}
51... Kf7 {[%clk 0:00:51.9]} 0-1

[Event "Betsys MČR v online bleskovém šachu 2021"]
[Site "Chess.com"]
[Date "2021.04.17"]
[Round "13"]
[White "Millbo64"]
[Black "Dejfos"]
[Result "0-1"]
[WhiteElo "1966"]
[BlackElo "1788"]
[TimeControl "180+1"]
[EndTime "11:11:10 PDT"]
[Termination "Uživatel Dejfos zvítězil matem"]

1. e4 {[%clk 0:03:00.9]} 1... c6 {[%clk 0:02:02.1]} 2. d4 {[%clk 0:03:00.1]}
2... d5 {[%clk 0:02:02.6]} 3. exd5 {[%clk 0:03:00.2]} 3... cxd5 {[%clk
0:02:02.2]} 4. Nf3 {[%clk 0:03:01.1]} 4... Nf6 {[%clk 0:02:00.2]} 5. c3 {[%clk
0:03:01.4]} 5... Bg4 {[%clk 0:02:00.6]} 6. Be2 {[%clk 0:03:00.9]} 6... e6 {[%clk
0:02:01.2]} 7. Bg5 {[%clk 0:03:00.2]} 7... Bd6 {[%clk 0:02:01.3]} 8. h3 {[%clk
0:03:00]} 8... Bh5 {[%clk 0:01:59.7]} 9. Nbd2 {[%clk 0:02:59.6]} 9... Bg6 {[%clk
0:01:59.8]} 10. O-O {[%clk 0:02:59.6]} 10... O-O {[%clk 0:02:00.4]} 11. Re1
{[%clk 0:02:59.5]} 11... Nbd7 {[%clk 0:02:00.8]} 12. Nf1 {[%clk 0:02:55.4]}
12... Qc7 {[%clk 0:02:01.3]} 13. Bd3 {[%clk 0:02:54.3]} 13... Ne4 {[%clk
0:01:59.9]} 14. Be3 {[%clk 0:02:50.8]} 14... f5 {[%clk 0:01:55.8]} 15. Re2
{[%clk 0:02:31.1]} 15... Bh5 {[%clk 0:01:53.2]} 16. Qc2 {[%clk 0:02:20.6]} 16...
Rf6 {[%clk 0:01:27.2]} 17. Ree1 {[%clk 0:02:19.6]} 17... Rg6 {[%clk 0:01:25.6]}
18. N3d2 {[%clk 0:02:15]} 18... Ndf6 {[%clk 0:01:01.1]} 19. Nxe4 {[%clk
0:02:14.2]} 19... fxe4 {[%clk 0:01:00.3]} 20. Be2 {[%clk 0:02:13.3]} 20... Bf4
{[%clk 0:00:52.5]} 21. Bxh5 {[%clk 0:02:12.5]} 21... Nxh5 {[%clk 0:00:51.9]} 22.
Qe2 {[%clk 0:02:07.3]} 22... Bxe3 {[%clk 0:00:51.3]} 23. Qxe3 {[%clk 0:02:02.6]}
23... Nf4 {[%clk 0:00:50]} 24. Ng3 {[%clk 0:01:52.2]} 24... h5 {[%clk
0:00:43.9]} 25. h4 {[%clk 0:01:41.3]} 25... Rf8 {[%clk 0:00:43.6]} 26. Rf1
{[%clk 0:01:32.7]} 26... Qd8 {[%clk 0:00:28.9]} 27. Qe1 {[%clk 0:01:24.9]} 27...
Qxh4 {[%clk 0:00:28.5]} 28. c4 {[%clk 0:01:18.7]} 28... Nd3 {[%clk 0:00:28.1]}
29. Qc3 {[%clk 0:01:12.3]} 29... Qf4 {[%clk 0:00:19.8]} 30. cxd5 {[%clk
0:00:53.7]} 30... exd5 {[%clk 0:00:18.9]} 31. Qb3 {[%clk 0:00:25.6]} 31... h4
{[%clk 0:00:13.8]} 32. Qxd5+ {[%clk 0:00:24.9]} 32... Kh8 {[%clk 0:00:13.1]} 33.
Ne2 {[%clk 0:00:23.7]} 33... Qg4 {[%clk 0:00:06.9]} 34. g3 {[%clk 0:00:23.6]}
34... hxg3 {[%clk 0:00:06.1]} 35. Nxg3 {[%clk 0:00:23]} 35... Nxf2 {[%clk
0:00:03.6]} 36. Rxf2 {[%clk 0:00:20.3]} 36... Qxg3+ {[%clk 0:00:03.3]} 37. Kf1
{[%clk 0:00:20.6]} 37... Qxf2# {[%clk 0:00:03.2]} 0-1

[Event "Betsys MČR v online bleskovém šachu 2021"]
[Site "Chess.com"]
[Date "2021.04.17"]
[Round "13"]
[White "Akdub"]
[Black "kaprasov"]
[Result "0-1"]
[WhiteElo "2086"]
[BlackElo "1897"]
[TimeControl "180+1"]
[EndTime "11:11:12 PDT"]
[Termination "Uživatel kaprasov zvítězil na čas"]

1. e4 {[%clk 0:01:22.6]} 1... c5 {[%clk 0:02:53.8]} 2. c3 {[%clk 0:01:22.1]}
2... d6 {[%clk 0:02:54.1]} 3. d4 {[%clk 0:01:22.1]} 3... Nf6 {[%clk 0:02:54.4]}
4. dxc5 {[%clk 0:01:14.5]} 4... Nc6 {[%clk 0:02:54.4]} 5. cxd6 {[%clk 0:01:14]}
5... Nxe4 {[%clk 0:02:54.4]} 6. Bd3 {[%clk 0:01:05.6]} 6... Nxd6 {[%clk
0:02:52.9]} 7. Nf3 {[%clk 0:01:05.4]} 7... g6 {[%clk 0:02:51.4]} 8. O-O {[%clk
0:01:05.1]} 8... Bg7 {[%clk 0:02:51.5]} 9. Qe2 {[%clk 0:01:04.9]} 9... O-O
{[%clk 0:02:49.9]} 10. h3 {[%clk 0:01:04.5]} 10... Bf5 {[%clk 0:02:44.2]} 11.
Rd1 {[%clk 0:01:00.5]} 11... Qc7 {[%clk 0:02:33.3]} 12. Bf4 {[%clk 0:00:54.1]}
12... Bxd3 {[%clk 0:01:22.9]} 13. Rxd3 {[%clk 0:00:53.3]} 13... Rfd8 {[%clk
0:01:14.5]} 14. Na3 {[%clk 0:00:50.1]} 14... a6 {[%clk 0:01:12.9]} 15. Rad1
{[%clk 0:00:48.6]} 15... Rd7 {[%clk 0:01:12.8]} 16. Bg3 {[%clk 0:00:39.7]} 16...
Rad8 {[%clk 0:01:04.5]} 17. Nc2 {[%clk 0:00:31]} 17... Qc8 {[%clk 0:00:55.2]}
18. Bxd6 {[%clk 0:00:26.9]} 18... Rxd6 {[%clk 0:00:49.5]} 19. Rxd6 {[%clk
0:00:26.1]} 19... Rxd6 {[%clk 0:00:50.1]} 20. Rxd6 {[%clk 0:00:25.1]} 20... exd6
{[%clk 0:00:50.4]} 21. Qd2 {[%clk 0:00:20.2]} 21... Qe6 {[%clk 0:00:42.8]} 22.
a3 {[%clk 0:00:14.1]} 22... d5 {[%clk 0:00:34.7]} 23. Ne3 {[%clk 0:00:08.6]}
23... Ne7 {[%clk 0:00:18.2]} 24. Nd4 {[%clk 0:00:07.2]} 24... Qe4 {[%clk
0:00:16.8]} 25. Ne2 {[%clk 0:00:06.5]} 25... Nc6 {[%clk 0:00:15.1]} 26. Ng3
{[%clk 0:00:06.6]} 26... Qb1+ {[%clk 0:00:10.4]} 27. Kh2 {[%clk 0:00:06.1]}
27... d4 {[%clk 0:00:10.4]} 28. cxd4 {[%clk 0:00:03.9]} 28... Bxd4 {[%clk
0:00:10.9]} 29. Nc2 {[%clk 0:00:03.3]} 29... Qxb2 {[%clk 0:00:09.8]} 30. Ne4
{[%clk 0:00:01.8]} 30... Bg7 {[%clk 0:00:03.3]} 0-1

[Event "Betsys MČR v online bleskovém šachu 2021"]
[Site "Chess.com"]
[Date "2021.04.17"]
[Round "13"]
[White "Krvelacny_krecek"]
[Black "MametevArtem097"]
[Result "1-0"]
[WhiteElo "2344"]
[BlackElo "1993"]
[TimeControl "180+1"]
[EndTime "11:11:13 PDT"]
[Termination "Uživatel Krvelacny_krecek zvítězil po vzdání soupeře"]

1. d4 {[%clk 0:03:00.9]} 1... Nf6 {[%clk 0:02:58.6]} 2. c4 {[%clk 0:03:01]} 2...
e6 {[%clk 0:02:59.1]} 3. g3 {[%clk 0:03:00.4]} 3... Bb4+ {[%clk 0:02:54.8]} 4.
Bd2 {[%clk 0:02:59.9]} 4... Bxd2+ {[%clk 0:02:54]} 5. Qxd2 {[%clk 0:03:00]} 5...
d5 {[%clk 0:02:54.6]} 6. Bg2 {[%clk 0:03:00.2]} 6... O-O {[%clk 0:02:53.4]} 7.
Nf3 {[%clk 0:03:00.3]} 7... Nbd7 {[%clk 0:02:46.4]} 8. O-O {[%clk 0:02:57.1]}
8... dxc4 {[%clk 0:02:45.2]} 9. Qc2 {[%clk 0:02:52.5]} 9... Nb6 {[%clk
0:02:44.4]} 10. Nbd2 {[%clk 0:02:49.1]} 10... Bd7 {[%clk 0:02:27.7]} 11. a4
{[%clk 0:02:31.1]} 11... a5 {[%clk 0:02:11]} 12. Ne5 {[%clk 0:02:30.4]} 12...
Bxa4 {[%clk 0:02:04.8]} 13. Rxa4 {[%clk 0:02:29.1]} 13... Nxa4 {[%clk
0:02:05.4]} 14. Qxa4 {[%clk 0:02:28.3]} 14... Qxd4 {[%clk 0:02:04.5]} 15. Nexc4
{[%clk 0:02:21.1]} 15... c6 {[%clk 0:01:52]} 16. Qc2 {[%clk 0:02:18.5]} 16... b5
{[%clk 0:01:49.3]} 17. Ne3 {[%clk 0:02:15.2]} 17... Rac8 {[%clk 0:01:44.8]} 18.
Nb3 {[%clk 0:02:13.5]} 18... Qb4 {[%clk 0:01:37.8]} 19. Rc1 {[%clk 0:02:11.5]}
19... Nd5 {[%clk 0:01:36.4]} 20. Bxd5 {[%clk 0:01:45]} 20... exd5 {[%clk
0:01:29.2]} 21. Nf5 {[%clk 0:01:43.2]} 21... a4 {[%clk 0:01:18]} 22. Nc5 {[%clk
0:01:38.5]} 22... Qg4 {[%clk 0:01:02.1]} 23. Ne7+ {[%clk 0:01:34.7]} 23... Kh8
{[%clk 0:01:01.8]} 24. Nxc8 {[%clk 0:01:34.5]} 24... Rxc8 {[%clk 0:01:01]} 25.
e3 {[%clk 0:01:29.1]} 25... Qb4 {[%clk 0:00:56.4]} 26. Nd3 {[%clk 0:01:28.2]}
26... Qd6 {[%clk 0:00:53]} 27. Qc3 {[%clk 0:01:25.1]} 27... h6 {[%clk
0:00:48.5]} 28. h4 {[%clk 0:01:24.3]} 28... Kh7 {[%clk 0:00:44.5]} 29. Qd4
{[%clk 0:01:22.3]} 29... a3 {[%clk 0:00:41.8]} 30. bxa3 {[%clk 0:01:20.2]} 30...
Qxa3 {[%clk 0:00:41.8]} 31. Rc3 {[%clk 0:01:13.1]} 31... Qa1+ {[%clk 0:00:39.6]}
32. Kg2 {[%clk 0:01:12.6]} 32... Qa6 {[%clk 0:00:28.3]} 33. Nb4 {[%clk
0:01:04.8]} 33... Qb7 {[%clk 0:00:27.5]} 34. Qc5 {[%clk 0:01:03.1]} 34... Qd7
{[%clk 0:00:25.7]} 35. Nxd5 {[%clk 0:00:57.3]} 35... b4 {[%clk 0:00:22.2]} 36.
Nxb4 {[%clk 0:00:56.8]} 36... Qd2 {[%clk 0:00:21.9]} 37. Nxc6 {[%clk 0:00:52.8]}
37... Ra8 {[%clk 0:00:20.4]} 38. Qf5+ {[%clk 0:00:46.5]} 38... Kg8 {[%clk
0:00:18.6]} 39. Ne7+ {[%clk 0:00:38.6]} 39... Kf8 {[%clk 0:00:18.2]} 40. Rc8+
{[%clk 0:00:37.9]} 40... Rxc8 {[%clk 0:00:17.5]} 41. Nxc8 {[%clk 0:00:37.9]}
41... Qd8 {[%clk 0:00:16.9]} 42. Qc5+ {[%clk 0:00:33.4]} 42... Ke8 {[%clk
0:00:16.7]} 43. Nd6+ {[%clk 0:00:33.1]} 43... Kd7 {[%clk 0:00:15.7]} 44. Nxf7
{[%clk 0:00:31.4]} 44... Qa8+ {[%clk 0:00:15.1]} 45. Kh2 {[%clk 0:00:28.1]}
45... Qf3 {[%clk 0:00:13.4]} 46. Ne5+ {[%clk 0:00:25.6]} 1-0

[Event "Betsys MČR v online bleskovém šachu 2021"]
[Site "Chess.com"]
[Date "2021.04.17"]
[Round "13"]
[White "p_kana"]
[Black "Cenisuh"]
[Result "1-0"]
[WhiteElo "1774"]
[BlackElo "1591"]
[TimeControl "180+1"]
[EndTime "11:11:13 PDT"]
[Termination "Uživatel p_kana zvítězil na čas"]

1. e4 {[%clk 0:03:00.9]} 1... c5 {[%clk 0:02:58.6]} 2. Nf3 {[%clk 0:02:59.8]}
2... d6 {[%clk 0:02:58.7]} 3. d4 {[%clk 0:02:59.8]} 3... cxd4 {[%clk 0:02:58.6]}
4. Qxd4 {[%clk 0:03:00.7]} 4... Nf6 {[%clk 0:02:58.1]} 5. Bg5 {[%clk 0:02:56.5]}
5... Nc6 {[%clk 0:02:56.8]} 6. Bb5 {[%clk 0:02:55.1]} 6... Bd7 {[%clk
0:02:29.2]} 7. Bxc6 {[%clk 0:02:52]} 7... Bxc6 {[%clk 0:02:27.6]} 8. Nc3 {[%clk
0:02:51.2]} 8... Qa5 {[%clk 0:02:14.5]} 9. O-O-O {[%clk 0:02:47.2]} 9... e5
{[%clk 0:02:07.7]} 10. Qc4 {[%clk 0:02:27.4]} 10... Be7 {[%clk 0:01:53.7]} 11.
Bxf6 {[%clk 0:02:19.2]} 11... gxf6 {[%clk 0:01:53.2]} 12. Nd5 {[%clk 0:02:18.9]}
12... Bxd5 {[%clk 0:01:47.5]} 13. Rxd5 {[%clk 0:02:11.4]} 13... Qd8 {[%clk
0:01:43.9]} 14. Nh4 {[%clk 0:02:01.4]} 14... Rc8 {[%clk 0:01:40.2]} 15. Qd3
{[%clk 0:01:57.8]} 15... Rg8 {[%clk 0:01:30.1]} 16. g3 {[%clk 0:01:53.7]} 16...
Rc5 {[%clk 0:01:21.6]} 17. Nf5 {[%clk 0:01:48.5]} 17... Rxd5 {[%clk 0:01:20.8]}
18. Qxd5 {[%clk 0:01:44.8]} 18... Qc7 {[%clk 0:01:19.6]} 19. Rd1 {[%clk
0:01:37]} 19... Qc6 {[%clk 0:01:05]} 20. Nxd6+ {[%clk 0:01:27]} 20... Qxd6
{[%clk 0:00:51.4]} 21. Qxd6 {[%clk 0:01:27.9]} 21... Bxd6 {[%clk 0:00:51.5]} 22.
Rxd6 {[%clk 0:01:26.1]} 22... Ke7 {[%clk 0:00:52.1]} 23. Rd3 {[%clk 0:01:21.1]}
23... Rg4 {[%clk 0:00:45]} 24. f3 {[%clk 0:01:19.3]} 24... Rg6 {[%clk
0:00:43.4]} 25. c4 {[%clk 0:01:15.2]} 25... Rh6 {[%clk 0:00:41.6]} 26. Rd2
{[%clk 0:01:10.1]} 26... b6 {[%clk 0:00:41.6]} 27. b4 {[%clk 0:01:09.1]} 27...
Rg6 {[%clk 0:00:41.3]} 28. Kc2 {[%clk 0:01:08.3]} 28... Rg8 {[%clk 0:00:41]} 29.
Rd5 {[%clk 0:01:03]} 29... Rc8 {[%clk 0:00:40.2]} 30. c5 {[%clk 0:01:00.6]}
30... bxc5 {[%clk 0:00:28.7]} 31. Rxc5 {[%clk 0:01:00]} 31... Ra8 {[%clk
0:00:22.8]} 32. Rc7+ {[%clk 0:00:53.9]} 32... Ke6 {[%clk 0:00:21.7]} 33. Kc3
{[%clk 0:00:53.1]} 33... a6 {[%clk 0:00:20.1]} 34. a3 {[%clk 0:00:49.7]} 34...
f5 {[%clk 0:00:17.5]} 35. exf5+ {[%clk 0:00:43.5]} 35... Kxf5 {[%clk 0:00:15.1]}
36. Rxf7+ {[%clk 0:00:43.5]} 36... Kg6 {[%clk 0:00:15.5]} 37. Rc7 {[%clk
0:00:42.5]} 37... h5 {[%clk 0:00:13.4]} 38. a4 {[%clk 0:00:40.8]} 38... Kf5
{[%clk 0:00:13]} 39. Rc5 {[%clk 0:00:37.5]} 39... Re8 {[%clk 0:00:04.7]} 40. b5
{[%clk 0:00:34.7]} 40... axb5 {[%clk 0:00:03]} 41. axb5 {[%clk 0:00:35.6]} 41...
Rb8 {[%clk 0:00:01.4]} 42. f4 {[%clk 0:00:33.7]} 42... Kf6 {[%clk 0:00:01.9]}
43. Rxe5 {[%clk 0:00:32.4]} 1-0